[Event "Titled Tuesday Blitz April 19 Early 2022"]
[White "Mikhailovsky, Vladimir"]
[Black "Petrovskyi, Vadym"]
[WhiteFideId "34105414"]
[BlackFideId "14165210"]
[WhiteElo "2349"]
[BlackElo "2400"]
[Result "0-1"]
[Round "10"]
[TimeControl "180+1"]
[Date "2022.04.19"]
[WhiteClock "0:00:02"]
[BlackClock "0:00:55"]

1. e4 {[%clk 0:02:37]}  c5 {[%clk 0:02:57]} 2. c3 {[%clk 0:02:36]}  d5 {[%clk 0:02:55]} 3. exd5 {[%clk 0:02:35]}  Qxd5 {[%clk 0:02:56]} 4. d4 {[%clk 0:02:34]}  Nf6 {[%clk 0:02:56]} 5. Nf3 {[%clk 0:02:35]}  Bg4 {[%clk 0:02:55]} 6. dxc5 {[%clk 0:02:32]}  Qxc5 {[%clk 0:02:33]} 7. Be3 {[%clk 0:02:30]}  Qc7 {[%clk 0:02:33]} 8. Qa4+ {[%clk 0:02:24]}  Nbd7 {[%clk 0:02:17]} 9. Nbd2 {[%clk 0:02:23]}  e6 {[%clk 0:02:17]} 10. Bb5 {[%clk 0:02:19]}  Be7 {[%clk 0:02:08]} 11. O-O {[%clk 0:02:00]}  O-O {[%clk 0:01:57]} 12. Rfe1 {[%clk 0:01:32]}  a6 {[%clk 0:01:46]} 13. Bf1 {[%clk 0:01:15]}  b5 {[%clk 0:01:39]} 14. Qf4 {[%clk 0:01:01]}  Qb7 {[%clk 0:01:34]} 15. Bd3 {[%clk 0:00:47]}  Bh5 {[%clk 0:01:27]} 16. Ne4 {[%clk 0:00:44]}  Nd5 {[%clk 0:01:23]} 17. Qg3 {[%clk 0:00:38]}  Nxe3 {[%clk 0:01:22]} 18. Rxe3 {[%clk 0:00:39]}  Bg6 {[%clk 0:01:23]} 19. Nd6 {[%clk 0:00:32]}  Qc6 {[%clk 0:01:19]} 20. Ne4 {[%clk 0:00:12]}  f5 {[%clk 0:01:12]} 21. Neg5 {[%clk 0:00:07]}  f4 {[%clk 0:01:11]} 22. Qh3 {[%clk 0:00:05]}  fxe3 {[%clk 0:00:58]} 23. Bxg6 {[%clk 0:00:05]}  exf2+ {[%clk 0:00:58]} 24. Kh1 {[%clk 0:00:05]}  h6 {[%clk 0:00:59]} 25. Nxe6 {[%clk 0:00:04]}  Rf6 {[%clk 0:00:58]} 26. Ned4 {[%clk 0:00:02]}  Qc4 {[%clk 0:00:55]} 0-1


[Site "https://www.chess.com"]

[Event "Titled Tuesday Blitz April 19 Early 2022"]
[White "Molina, Roberto Junio Brito"]
[Black "Belozerov, Andrei"]
[WhiteFideId "2109450"]
[BlackFideId "4120213"]
[WhiteElo "2432"]
[BlackElo "2320"]
[Result "1-0"]
[Round "10"]
[TimeControl "180+1"]
[Date "2022.04.19"]
[WhiteClock "0:01:21"]
[BlackClock "0:00:05"]

1. d4 {[%clk 0:03:00]}  d5 {[%clk 0:02:57]} 2. c4 {[%clk 0:03:01]}  c6 {[%clk 0:02:57]} 3. Nf3 {[%clk 0:03:00]}  Nf6 {[%clk 0:02:57]} 4. Nc3 {[%clk 0:03:00]}  dxc4 {[%clk 0:02:57]} 5. a4 {[%clk 0:03:00]}  Bf5 {[%clk 0:02:57]} 6. Ne5 {[%clk 0:03:00]}  e6 {[%clk 0:02:50]} 7. Nxc4 {[%clk 0:02:58]}  Bb4 {[%clk 0:02:39]} 8. e3 {[%clk 0:02:56]}  O-O {[%clk 0:02:34]} 9. Bd3 {[%clk 0:02:54]}  Bxd3 {[%clk 0:01:55]} 10. Qxd3 {[%clk 0:02:55]}  Nbd7 {[%clk 0:01:54]} 11. O-O {[%clk 0:02:51]}  c5 {[%clk 0:01:52]} 12. Ne4 {[%clk 0:02:40]}  cxd4 {[%clk 0:01:40]} 13. Qxd4 {[%clk 0:02:32]}  Nxe4 {[%clk 0:01:38]} 14. Qxe4 {[%clk 0:02:33]}  Qc7 {[%clk 0:01:07]} 15. Bd2 {[%clk 0:02:15]}  Nc5 {[%clk 0:00:38]} 16. Qc2 {[%clk 0:02:11]}  Bxd2 {[%clk 0:00:31]} 17. Nxd2 {[%clk 0:02:12]}  Qe5 {[%clk 0:00:24]} 18. Nf3 {[%clk 0:02:04]}  Qh5 {[%clk 0:00:20]} 19. b4 {[%clk 0:02:04]}  Nd7 {[%clk 0:00:18]} 20. Qc7 {[%clk 0:02:02]}  Nf6 {[%clk 0:00:15]} 21. Qxb7 {[%clk 0:01:52]}  Rab8 {[%clk 0:00:14]} 22. Qxa7 {[%clk 0:01:51]}  Rxb4 {[%clk 0:00:15]} 23. a5 {[%clk 0:01:51]}  Rb5 {[%clk 0:00:09]} 24. a6 {[%clk 0:01:50]}  Rf5 {[%clk 0:00:10]} 25. Nd4 {[%clk 0:01:46]}  Rd5 {[%clk 0:00:05]} 26. Qb7 {[%clk 0:01:31]}  Ng4 {[%clk 0:00:05]} 27. h3 {[%clk 0:01:29]}  Rg5 {[%clk 0:00:04]} 28. hxg4 {[%clk 0:01:28]}  Qxg4 {[%clk 0:00:05]} 29. a7 {[%clk 0:01:21]} 1-0


[Site "https://www.chess.com"]

[Event "Titled Tuesday Blitz April 19 Early 2022"]
[White "Moskalenko, Alexander"]
[Black "Indjic, Aleksandar"]
[WhiteFideId "4155351"]
[BlackFideId "911925"]
[WhiteElo "2434"]
[BlackElo "2616"]
[Result "1-0"]
[Round "10"]
[TimeControl "180+1"]
[Date "2022.04.19"]
[WhiteClock "0:01:17"]
[BlackClock "0:00:47"]

1. d4 {[%clk 0:03:00]}  Nf6 {[%clk 0:02:59]} 2. Nf3 {[%clk 0:03:00]}  e6 {[%clk 0:02:59]} 3. Bg5 {[%clk 0:02:59]}  h6 {[%clk 0:02:57]} 4. Bh4 {[%clk 0:02:59]}  c5 {[%clk 0:02:55]} 5. e3 {[%clk 0:02:59]}  d5 {[%clk 0:02:51]} 6. c3 {[%clk 0:02:56]}  Nbd7 {[%clk 0:02:51]} 7. Nbd2 {[%clk 0:02:55]}  b6 {[%clk 0:02:49]} 8. Bd3 {[%clk 0:02:54]}  Bb7 {[%clk 0:02:48]} 9. Ne5 {[%clk 0:02:50]}  a6 {[%clk 0:02:35]} 10. f4 {[%clk 0:02:45]}  Be7 {[%clk 0:02:33]} 11. O-O {[%clk 0:02:45]}  Ne4 {[%clk 0:02:27]} 12. Bxe7 {[%clk 0:02:41]}  Qxe7 {[%clk 0:02:28]} 13. Bxe4 {[%clk 0:02:41]}  dxe4 {[%clk 0:02:27]} 14. Nxd7 {[%clk 0:02:42]}  Qxd7 {[%clk 0:02:26]} 15. dxc5 {[%clk 0:02:42]}  Qd3 {[%clk 0:02:10]} 16. Qa4+ {[%clk 0:02:36]}  b5 {[%clk 0:02:08]} 17. Qd4 {[%clk 0:02:37]}  Rd8 {[%clk 0:02:07]} 18. Qxd3 {[%clk 0:02:30]}  Rxd3 {[%clk 0:02:07]} 19. Nb3 {[%clk 0:02:31]}  Rxe3 {[%clk 0:02:07]} 20. Nc1 {[%clk 0:02:21]}  Ke7 {[%clk 0:01:32]} 21. Kf2 {[%clk 0:02:21]}  Rd3 {[%clk 0:01:32]} 22. Nxd3 {[%clk 0:02:20]}  exd3 {[%clk 0:01:33]} 23. Rfd1 {[%clk 0:02:16]}  Be4 {[%clk 0:01:33]} 24. Ke3 {[%clk 0:02:16]}  f5 {[%clk 0:01:32]} 25. a4 {[%clk 0:02:13]}  g5 {[%clk 0:01:31]} 26. axb5 {[%clk 0:02:04]}  axb5 {[%clk 0:01:32]} 27. g3 {[%clk 0:01:51]}  Rg8 {[%clk 0:01:31]} 28. Ra7+ {[%clk 0:01:41]}  Kf6 {[%clk 0:01:31]} 29. Rxd3 {[%clk 0:01:42]}  gxf4+ {[%clk 0:01:31]} 30. gxf4 {[%clk 0:01:43]}  Bxd3 {[%clk 0:01:26]} 31. Kxd3 {[%clk 0:01:44]}  Rg4 {[%clk 0:01:18]} 32. Ke3 {[%clk 0:01:43]}  e5 {[%clk 0:01:10]} 33. Ra6+ {[%clk 0:01:42]}  Ke7 {[%clk 0:01:10]} 34. fxe5 {[%clk 0:01:42]}  b4 {[%clk 0:01:04]} 35. Kd3 {[%clk 0:01:36]}  bxc3 {[%clk 0:01:00]} 36. Kxc3 {[%clk 0:01:37]}  Re4 {[%clk 0:00:59]} 37. Rxh6 {[%clk 0:01:36]}  Rxe5 {[%clk 0:00:59]} 38. b4 {[%clk 0:01:36]}  f4 {[%clk 0:00:59]} 39. Rh3 {[%clk 0:01:30]}  Re4 {[%clk 0:00:52]} 40. Rd3 {[%clk 0:01:17]}  Kf6 {[%clk 0:00:48]} 41. c6 {[%clk 0:01:17]}  Re8 {[%clk 0:00:45]} 42. b5 {[%clk 0:01:16]}  Rc8 {[%clk 0:00:44]} 43. Kc4 {[%clk 0:01:17]}  Ke5 {[%clk 0:00:45]} 44. Kc5 {[%clk 0:01:17]}  Ke4 {[%clk 0:00:45]} 45. Rd1 {[%clk 0:01:18]}  f3 {[%clk 0:00:46]} 46. b6 {[%clk 0:01:18]}  f2 {[%clk 0:00:46]} 47. b7 {[%clk 0:01:19]}  Rd8 {[%clk 0:00:47]} 48. Rf1 {[%clk 0:01:17]} 1-0


[Site "https://www.chess.com"]

[Event "Titled Tuesday Blitz April 19 Early 2022"]
[White "Nugumanov, Bakhtiyar"]
[Black "Dahlgren, James Allen"]
[WhiteFideId "13701797"]
[BlackFideId "22256873"]
[WhiteElo "2262"]
[BlackElo "2091"]
[Result "0-1"]
[Round "10"]
[TimeControl "180+1"]
[Date "2022.04.19"]
[WhiteClock "0:00:29"]
[BlackClock "0:00:51"]

1. Nf3 {[%clk 0:03:00]}  e6 {[%clk 0:02:59]} 2. g3 {[%clk 0:02:59]}  c5 {[%clk 0:03:00]} 3. Bg2 {[%clk 0:02:58]}  d5 {[%clk 0:03:01]} 4. O-O {[%clk 0:02:57]}  Nf6 {[%clk 0:03:02]} 5. d4 {[%clk 0:02:55]}  Be7 {[%clk 0:03:03]} 6. c4 {[%clk 0:02:54]}  O-O {[%clk 0:03:03]} 7. Nc3 {[%clk 0:02:51]}  Nc6 {[%clk 0:03:04]} 8. dxc5 {[%clk 0:02:41]}  dxc4 {[%clk 0:03:01]} 9. Qa4 {[%clk 0:02:39]}  Bxc5 {[%clk 0:02:55]} 10. Qxc4 {[%clk 0:02:31]}  Be7 {[%clk 0:02:55]} 11. e4 {[%clk 0:02:21]}  e5 {[%clk 0:02:51]} 12. Be3 {[%clk 0:02:13]}  h6 {[%clk 0:02:46]} 13. Rfd1 {[%clk 0:02:10]}  Qa5 {[%clk 0:02:46]} 14. Nd5 {[%clk 0:02:07]}  Be6 {[%clk 0:02:37]} 15. Rac1 {[%clk 0:01:28]}  Rac8 {[%clk 0:02:10]} 16. Qb3 {[%clk 0:01:12]}  Nxe4 {[%clk 0:01:49]} 17. Nxe7+ {[%clk 0:00:45]}  Nxe7 {[%clk 0:01:50]} 18. Qxb7 {[%clk 0:00:45]}  Rxc1 {[%clk 0:01:42]} 19. Rxc1 {[%clk 0:00:43]}  Nd5 {[%clk 0:00:59]} 20. Nxe5 {[%clk 0:00:36]}  Nxe3 {[%clk 0:00:55]} 21. Bxe4 {[%clk 0:00:31]}  Qxe5 {[%clk 0:00:52]} 22. fxe3 {[%clk 0:00:29]}  f5 {[%clk 0:00:51]} 0-1


[Site "https://www.chess.com"]

[Event "Titled Tuesday Blitz April 19 Early 2022"]
[White "Ocelak, Jakub"]
[Black "Zaksaite, Salomeja"]
[WhiteFideId "23707933"]
[BlackFideId "12801496"]
[WhiteElo "2048"]
[BlackElo "1953"]
[Result "1/2-1/2"]
[Round "10"]
[TimeControl "180+1"]
[Date "2022.04.19"]
[WhiteClock "0:01:51"]
[BlackClock "0:02:26"]

1. e4 {[%clk 0:03:00]}  c5 {[%clk 0:02:55]} 2. a3 {[%clk 0:03:00]}  e5 {[%clk 0:02:51]} 3. Bc4 {[%clk 0:02:55]}  Nf6 {[%clk 0:02:45]} 4. Nc3 {[%clk 0:02:49]}  Be7 {[%clk 0:02:43]} 5. Nf3 {[%clk 0:02:46]}  Nc6 {[%clk 0:02:41]} 6. d3 {[%clk 0:02:44]}  d6 {[%clk 0:02:41]} 7. Bg5 {[%clk 0:02:43]}  O-O {[%clk 0:02:40]} 8. h3 {[%clk 0:02:42]}  Be6 {[%clk 0:02:40]} 9. O-O {[%clk 0:02:38]}  a6 {[%clk 0:02:40]} 10. a4 {[%clk 0:02:34]}  Rb8 {[%clk 0:02:39]} 11. Bxf6 {[%clk 0:02:04]}  Bxf6 {[%clk 0:02:38]} 12. Nd5 {[%clk 0:02:00]}  b5 {[%clk 0:02:35]} 13. axb5 {[%clk 0:01:57]}  axb5 {[%clk 0:02:35]} 14. Bb3 {[%clk 0:01:58]}  g6 {[%clk 0:02:32]} 15. Ra6 {[%clk 0:01:54]}  Bxd5 {[%clk 0:02:26]} 16. Bxd5 {[%clk 0:01:51]}  Nb4 {[%clk 0:02:26]} 1/2-1/2


[Site "https://www.chess.com"]

[Event "Titled Tuesday Blitz April 19 Early 2022"]
[White "Oparin, Grigoriy"]
[Black "Fedoseev, Vladimir"]
[WhiteFideId "24125890"]
[BlackFideId "24130737"]
[WhiteElo "2665"]
[BlackElo "2726"]
[Result "0-1"]
[Round "10"]
[TimeControl "180+1"]
[Date "2022.04.19"]
[WhiteClock "0:00:06"]
[BlackClock "0:01:05"]

1. d4 {[%clk 0:03:00]}  Nf6 {[%clk 0:02:58]} 2. c4 {[%clk 0:03:01]}  e6 {[%clk 0:02:58]} 3. Nf3 {[%clk 0:03:02]}  d5 {[%clk 0:02:57]} 4. g3 {[%clk 0:03:02]}  Bb4+ {[%clk 0:02:57]} 5. Bd2 {[%clk 0:03:00]}  Be7 {[%clk 0:02:56]} 6. Bg2 {[%clk 0:03:00]}  O-O {[%clk 0:02:57]} 7. O-O {[%clk 0:03:00]}  c6 {[%clk 0:02:57]} 8. Bc3 {[%clk 0:03:00]}  dxc4 {[%clk 0:02:51]} 9. a4 {[%clk 0:03:00]}  Nd5 {[%clk 0:02:39]} 10. a5 {[%clk 0:02:57]}  Nd7 {[%clk 0:02:32]} 11. Nfd2 {[%clk 0:02:52]}  b5 {[%clk 0:02:30]} 12. axb6 {[%clk 0:02:51]}  N7xb6 {[%clk 0:02:30]} 13. Ba5 {[%clk 0:02:44]}  Ba6 {[%clk 0:02:30]} 14. Na3 {[%clk 0:02:25]}  Qd7 {[%clk 0:02:23]} 15. Qc2 {[%clk 0:01:54]}  c3 {[%clk 0:02:11]} 16. bxc3 {[%clk 0:01:54]}  Bxe2 {[%clk 0:02:10]} 17. Rfe1 {[%clk 0:01:55]}  Bh5 {[%clk 0:02:09]} 18. c4 {[%clk 0:01:51]}  Bg6 {[%clk 0:02:05]} 19. Qa2 {[%clk 0:01:36]}  Nb4 {[%clk 0:01:55]} 20. Bxb4 {[%clk 0:00:57]}  Bxb4 {[%clk 0:01:53]} 21. c5 {[%clk 0:00:57]}  Nd5 {[%clk 0:01:37]} 22. Nac4 {[%clk 0:00:58]}  Bc3 {[%clk 0:01:25]} 23. Rad1 {[%clk 0:00:32]}  Bxd4 {[%clk 0:01:23]} 24. Nb3 {[%clk 0:00:28]}  Bc3 {[%clk 0:01:21]} 25. Rf1 {[%clk 0:00:17]}  Qc7 {[%clk 0:01:20]} 26. Qe2 {[%clk 0:00:11]}  a5 {[%clk 0:01:17]} 27. Nd6 {[%clk 0:00:11]}  a4 {[%clk 0:01:15]} 28. Nd4 {[%clk 0:00:10]}  a3 {[%clk 0:01:15]} 29. Qc4 {[%clk 0:00:10]}  Bb2 {[%clk 0:01:12]} 30. Nc2 {[%clk 0:00:08]}  a2 {[%clk 0:01:07]} 31. h4 {[%clk 0:00:05]}  Bxc2 {[%clk 0:01:05]} 32. Qxc2 {[%clk 0:00:06]}  a1=Q {[%clk 0:01:05]} 0-1


[Site "https://www.chess.com"]

[Event "Titled Tuesday Blitz April 19 Early 2022"]
[White "Pakleza, Zbigniew"]
[Black "Papp, Levente"]
[WhiteFideId "1119290"]
[BlackFideId "751243"]
[WhiteElo "2467"]
[BlackElo "2308"]
[Result "1-0"]
[Round "10"]
[TimeControl "180+1"]
[Date "2022.04.19"]
[WhiteClock "0:00:07"]
[BlackClock "0:00:04"]

1. d4 {[%clk 0:03:00]}  Nf6 {[%clk 0:02:58]} 2. Nf3 {[%clk 0:03:00]}  e6 {[%clk 0:02:58]} 3. Bf4 {[%clk 0:03:01]}  c5 {[%clk 0:02:57]} 4. c3 {[%clk 0:03:01]}  Nc6 {[%clk 0:02:57]} 5. e3 {[%clk 0:03:00]}  d5 {[%clk 0:02:57]} 6. Nbd2 {[%clk 0:03:00]}  Nh5 {[%clk 0:02:50]} 7. Be5 {[%clk 0:03:00]}  f6 {[%clk 0:02:49]} 8. Bg3 {[%clk 0:03:00]}  Nxg3 {[%clk 0:02:50]} 9. hxg3 {[%clk 0:03:01]}  g6 {[%clk 0:02:50]} 10. Bd3 {[%clk 0:03:00]}  Kf7 {[%clk 0:02:36]} 11. Qc2 {[%clk 0:03:00]}  Bg7 {[%clk 0:02:35]} 12. Rxh7 {[%clk 0:02:56]}  f5 {[%clk 0:02:26]} 13. Rxh8 {[%clk 0:02:52]}  Qxh8 {[%clk 0:02:26]} 14. O-O-O {[%clk 0:02:48]}  c4 {[%clk 0:02:21]} 15. Be2 {[%clk 0:02:44]}  b5 {[%clk 0:02:21]} 16. Ng5+ {[%clk 0:02:32]}  Ke7 {[%clk 0:02:21]} 17. g4 {[%clk 0:02:14]}  Qh4 {[%clk 0:02:15]} 18. Nh3 {[%clk 0:02:11]}  fxg4 {[%clk 0:02:14]} 19. Qxg6 {[%clk 0:02:06]}  gxh3 {[%clk 0:01:56]} 20. Qxg7+ {[%clk 0:02:05]}  Kd6 {[%clk 0:01:53]} 21. g3 {[%clk 0:01:37]}  Qe7 {[%clk 0:01:41]} 22. Qh6 {[%clk 0:01:37]}  b4 {[%clk 0:01:33]} 23. cxb4 {[%clk 0:01:16]}  Nxb4 {[%clk 0:01:03]} 24. a3 {[%clk 0:01:16]}  Nc6 {[%clk 0:01:01]} 25. Nb1 {[%clk 0:01:09]}  Rb8 {[%clk 0:00:45]} 26. Qf4+ {[%clk 0:00:59]}  Kd7 {[%clk 0:00:45]} 27. Rh1 {[%clk 0:00:55]}  Rb3 {[%clk 0:00:35]} 28. Rxh3 {[%clk 0:00:47]}  c3 {[%clk 0:00:35]} 29. Nxc3 {[%clk 0:00:47]}  Rxc3+ {[%clk 0:00:35]} 30. bxc3 {[%clk 0:00:48]}  Qxa3+ {[%clk 0:00:35]} 31. Kd2 {[%clk 0:00:49]}  Qb2+ {[%clk 0:00:30]} 32. Ke1 {[%clk 0:00:46]}  Qc1+ {[%clk 0:00:23]} 33. Bd1 {[%clk 0:00:45]}  Ba6 {[%clk 0:00:21]} 34. Rh7+ {[%clk 0:00:33]}  Ne7 {[%clk 0:00:21]} 35. e4 {[%clk 0:00:13]}  Qxc3+ {[%clk 0:00:19]} 36. Qd2 {[%clk 0:00:14]}  Qc4 {[%clk 0:00:04]} 37. Be2 {[%clk 0:00:14]}  Qa4 {[%clk 0:00:04]} 38. Bxa6 {[%clk 0:00:13]}  Qxa6 {[%clk 0:00:04]} 39. Qb4 {[%clk 0:00:11]}  Qa1+ {[%clk 0:00:03]} 40. Ke2 {[%clk 0:00:08]}  Qa2+ {[%clk 0:00:04]} 41. Ke3 {[%clk 0:00:07]} 1-0


[Site "https://www.chess.com"]

[Event "Titled Tuesday Blitz April 19 Early 2022"]
[White "Palachev, Petr"]
[Black "Maksimenko, Viktor"]
[WhiteFideId "24129003"]
[BlackFideId "13710478"]
[WhiteElo "2339"]
[BlackElo "2269"]
[Result "0-1"]
[Round "10"]
[TimeControl "180+1"]
[Date "2022.04.19"]
[WhiteClock "0:00:40"]
[BlackClock "0:00:51"]

1. d4 {[%clk 0:02:59]}  Nf6 {[%clk 0:03:00]} 2. Nf3 {[%clk 0:02:59]}  e6 {[%clk 0:02:59]} 3. Bg5 {[%clk 0:03:00]}  Be7 {[%clk 0:02:52]} 4. Nbd2 {[%clk 0:02:59]}  b6 {[%clk 0:02:46]} 5. e4 {[%clk 0:02:58]}  Bb7 {[%clk 0:02:44]} 6. Bd3 {[%clk 0:02:59]}  h6 {[%clk 0:02:42]} 7. Bh4 {[%clk 0:02:56]}  Nh5 {[%clk 0:02:39]} 8. Bxe7 {[%clk 0:02:52]}  Qxe7 {[%clk 0:02:40]} 9. g3 {[%clk 0:02:51]}  d6 {[%clk 0:02:36]} 10. Qe2 {[%clk 0:02:49]}  Nd7 {[%clk 0:02:34]} 11. a4 {[%clk 0:02:49]}  a5 {[%clk 0:02:29]} 12. c3 {[%clk 0:02:39]}  Nhf6 {[%clk 0:02:28]} 13. O-O {[%clk 0:02:38]}  e5 {[%clk 0:02:27]} 14. Nh4 {[%clk 0:02:34]}  g6 {[%clk 0:02:23]} 15. Rae1 {[%clk 0:02:31]}  O-O-O {[%clk 0:02:08]} 16. d5 {[%clk 0:02:20]}  Nh5 {[%clk 0:01:52]} 17. Ng2 {[%clk 0:02:12]}  Ng7 {[%clk 0:01:39]} 18. b4 {[%clk 0:02:12]}  axb4 {[%clk 0:01:39]} 19. cxb4 {[%clk 0:02:13]}  f5 {[%clk 0:01:39]} 20. f3 {[%clk 0:01:58]}  h5 {[%clk 0:01:30]} 21. Rc1 {[%clk 0:01:37]}  h4 {[%clk 0:01:25]} 22. Nxh4 {[%clk 0:01:37]}  Rxh4 {[%clk 0:01:24]} 23. gxh4 {[%clk 0:01:38]}  Qxh4 {[%clk 0:01:24]} 24. a5 {[%clk 0:01:28]}  Nh5 {[%clk 0:01:17]} 25. Ba6 {[%clk 0:01:18]}  Nf4 {[%clk 0:01:11]} 26. Bxb7+ {[%clk 0:01:17]}  Kxb7 {[%clk 0:01:10]} 27. Qf2 {[%clk 0:00:48]}  Nh3+ {[%clk 0:01:08]} 28. Kg2 {[%clk 0:00:47]}  Nxf2 {[%clk 0:01:09]} 29. Rxf2 {[%clk 0:00:48]}  Rh8 {[%clk 0:01:04]} 30. Kg1 {[%clk 0:00:44]}  Qg5+ {[%clk 0:01:02]} 31. Kh1 {[%clk 0:00:43]}  Nf6 {[%clk 0:00:57]} 32. Rg1 {[%clk 0:00:41]}  Qf4 {[%clk 0:00:56]} 33. axb6 {[%clk 0:00:40]}  Ng4 {[%clk 0:00:51]} 0-1


[Site "https://www.chess.com"]

[Event "Titled Tuesday Blitz April 19 Early 2022"]
[White "Papp, Petra"]
[Black "Yang, Kaiqi"]
[WhiteFideId "739049"]
[BlackFideId "8604398"]
[WhiteElo "2259"]
[BlackElo "2373"]
[Result "1-0"]
[Round "10"]
[TimeControl "180+1"]
[Date "2022.04.19"]
[WhiteClock "0:00:54"]
[BlackClock "0:00:02"]

1. e4 {[%clk 0:03:00]}  e6 {[%clk 0:02:55]} 2. d4 {[%clk 0:03:00]}  d5 {[%clk 0:02:55]} 3. Nc3 {[%clk 0:03:01]}  Nf6 {[%clk 0:02:54]} 4. e5 {[%clk 0:03:00]}  Nfd7 {[%clk 0:02:54]} 5. f4 {[%clk 0:03:00]}  c5 {[%clk 0:02:54]} 6. Nf3 {[%clk 0:03:01]}  Nc6 {[%clk 0:02:55]} 7. Be3 {[%clk 0:03:01]}  Be7 {[%clk 0:02:55]} 8. Qd2 {[%clk 0:03:02]}  O-O {[%clk 0:02:55]} 9. dxc5 {[%clk 0:02:59]}  Nxc5 {[%clk 0:02:55]} 10. O-O-O {[%clk 0:02:59]}  b6 {[%clk 0:02:47]} 11. Kb1 {[%clk 0:02:58]}  Bb7 {[%clk 0:02:47]} 12. Nd4 {[%clk 0:02:55]}  Rc8 {[%clk 0:02:45]} 13. Bd3 {[%clk 0:02:54]}  Nxd3 {[%clk 0:02:39]} 14. Qxd3 {[%clk 0:02:49]}  Qc7 {[%clk 0:02:20]} 15. h4 {[%clk 0:02:48]}  Nxd4 {[%clk 0:01:55]} 16. Bxd4 {[%clk 0:02:46]}  Qc4 {[%clk 0:01:55]} 17. Qe3 {[%clk 0:02:41]}  b5 {[%clk 0:01:50]} 18. Rd2 {[%clk 0:02:28]}  b4 {[%clk 0:01:50]} 19. Ne2 {[%clk 0:02:26]}  a5 {[%clk 0:01:34]} 20. g4 {[%clk 0:02:17]}  a4 {[%clk 0:01:04]} 21. f5 {[%clk 0:02:16]}  Rfd8 {[%clk 0:00:58]} 22. f6 {[%clk 0:02:13]}  Bf8 {[%clk 0:00:58]} 23. fxg7 {[%clk 0:02:07]}  Bxg7 {[%clk 0:00:55]} 24. h5 {[%clk 0:02:08]}  h6 {[%clk 0:00:20]} 25. g5 {[%clk 0:02:07]}  Kh7 {[%clk 0:00:20]} 26. Rg1 {[%clk 0:01:42]}  hxg5 {[%clk 0:00:12]} 27. Qxg5 {[%clk 0:01:21]}  Bh6 {[%clk 0:00:12]} 28. Qf6 {[%clk 0:01:16]}  Qc7 {[%clk 0:00:10]} 29. Be3 {[%clk 0:00:57]}  Bf8 {[%clk 0:00:02]} 30. Qg5 {[%clk 0:00:54]} 1-0


[Site "https://www.chess.com"]

[Event "Titled Tuesday Blitz April 19 Early 2022"]
[White "Petrova, Irina"]
[Black "Mohammadian, Mohammad"]
[WhiteFideId "14124122"]
[BlackFideId "12566055"]
[WhiteElo "1993"]
[BlackElo "1544"]
[Result "1-0"]
[Round "10"]
[TimeControl "180+1"]
[Date "2022.04.19"]
[WhiteClock "0:01:59"]
[BlackClock "0:00:03"]

1. e4 {[%clk 0:03:00]}  e5 {[%clk 0:02:57]} 2. Nf3 {[%clk 0:03:00]}  Nc6 {[%clk 0:02:55]} 3. Bb5 {[%clk 0:03:00]}  a6 {[%clk 0:02:53]} 4. Ba4 {[%clk 0:03:00]}  Nf6 {[%clk 0:02:50]} 5. d3 {[%clk 0:02:58]}  h6 {[%clk 0:02:49]} 6. Bxc6 {[%clk 0:02:55]}  dxc6 {[%clk 0:02:48]} 7. Nxe5 {[%clk 0:02:51]}  Bd6 {[%clk 0:02:48]} 8. Nf3 {[%clk 0:02:50]}  Bg4 {[%clk 0:02:47]} 9. h3 {[%clk 0:02:50]}  Bh5 {[%clk 0:02:47]} 10. g4 {[%clk 0:02:46]}  Bg6 {[%clk 0:02:46]} 11. e5 {[%clk 0:02:46]}  Qe7 {[%clk 0:02:44]} 12. Qe2 {[%clk 0:02:46]}  Bb4+ {[%clk 0:02:14]} 13. c3 {[%clk 0:02:42]}  O-O-O {[%clk 0:01:28]} 14. exf6 {[%clk 0:02:31]}  Qxf6 {[%clk 0:01:25]} 15. d4 {[%clk 0:02:23]}  Rhe8 {[%clk 0:01:20]} 16. Be3 {[%clk 0:02:23]}  Ba5 {[%clk 0:00:39]} 17. Nbd2 {[%clk 0:02:22]}  Bb6 {[%clk 0:00:39]} 18. O-O-O {[%clk 0:02:15]}  Qe6 {[%clk 0:00:18]} 19. Qc4 {[%clk 0:02:06]}  Qd7 {[%clk 0:00:05]} 20. Rhe1 {[%clk 0:02:02]}  f5 {[%clk 0:00:03]} 21. Nh4 {[%clk 0:01:59]} 1-0


[Site "https://www.chess.com"]

[Event "Titled Tuesday Blitz April 19 Early 2022"]
[White "Pham, Tran Gia Phuc"]
[Black "Lysyj, Igor"]
[WhiteFideId "12415669"]
[BlackFideId "4150120"]
[WhiteElo "1789"]
[BlackElo "2611"]
[Result "1-0"]
[Round "10"]
[TimeControl "180+1"]
[Date "2022.04.19"]
[WhiteClock "0:01:06"]
[BlackClock "0:00:23"]

1. e4 {[%clk 0:03:00]}  e5 {[%clk 0:02:56]} 2. Nf3 {[%clk 0:02:59]}  Nc6 {[%clk 0:02:56]} 3. Bc4 {[%clk 0:02:55]}  Bc5 {[%clk 0:02:56]} 4. c3 {[%clk 0:02:53]}  Nf6 {[%clk 0:02:55]} 5. d3 {[%clk 0:02:53]}  d6 {[%clk 0:02:53]} 6. O-O {[%clk 0:02:53]}  h6 {[%clk 0:02:53]} 7. b4 {[%clk 0:02:53]}  Bb6 {[%clk 0:02:53]} 8. a4 {[%clk 0:02:52]}  a5 {[%clk 0:02:52]} 9. b5 {[%clk 0:02:52]}  Ne7 {[%clk 0:02:52]} 10. Nbd2 {[%clk 0:02:50]}  O-O {[%clk 0:02:52]} 11. d4 {[%clk 0:02:49]}  Ng6 {[%clk 0:02:48]} 12. h3 {[%clk 0:02:41]}  Re8 {[%clk 0:02:34]} 13. Re1 {[%clk 0:02:38]}  d5 {[%clk 0:02:21]} 14. exd5 {[%clk 0:02:15]}  e4 {[%clk 0:02:21]} 15. Nh2 {[%clk 0:02:13]}  Bf5 {[%clk 0:02:14]} 16. Qb3 {[%clk 0:02:06]}  Nf4 {[%clk 0:02:06]} 17. d6 {[%clk 0:02:05]}  Qd7 {[%clk 0:02:03]} 18. Nxe4 {[%clk 0:01:52]}  Nxh3+ {[%clk 0:01:57]} 19. gxh3 {[%clk 0:01:52]}  Bxe4 {[%clk 0:01:55]} 20. f3 {[%clk 0:01:33]}  Bg6 {[%clk 0:01:40]} 21. Bf4 {[%clk 0:01:31]}  cxd6 {[%clk 0:01:38]} 22. Ng4 {[%clk 0:01:31]}  Nh5 {[%clk 0:01:26]} 23. Bh2 {[%clk 0:01:30]}  Kh7 {[%clk 0:01:21]} 24. Bd5 {[%clk 0:01:30]}  f5 {[%clk 0:01:17]} 25. Nf2 {[%clk 0:01:29]}  Nf6 {[%clk 0:01:11]} 26. Be6 {[%clk 0:01:28]}  Qc7 {[%clk 0:01:06]} 27. Nd3 {[%clk 0:01:28]}  Nh5 {[%clk 0:00:59]} 28. Rac1 {[%clk 0:01:22]}  Re7 {[%clk 0:00:58]} 29. Qd5 {[%clk 0:01:11]}  Nf6 {[%clk 0:00:23]} 30. Qxd6 {[%clk 0:01:10]}  Rae8 {[%clk 0:00:22]} 31. Qxc7 {[%clk 0:01:09]}  Bxc7 {[%clk 0:00:22]} 32. Bxc7 {[%clk 0:01:07]}  Rxc7 {[%clk 0:00:23]} 33. Nf4 {[%clk 0:01:06]} 1-0


[Site "https://www.chess.com"]